bitfinex/quotes_BTCUSD_20250711
["timestamp","ask_amount","ask_price","bid_price","bid_amount"]
[1752194536282,1.26775879,115570.0,115560.0,0.06297451]
[1752194536487,1.29190655,115570.0,115560.0,0.0163111]
[1752194537114,1.28325409,115570.0,115560.0,0.0163111]
[1752194538884,1.11019843,115570.0,115560.0,0.0163111]
[1752194539111,1.11885119,115570.0,115560.0,0.02290555]
[1752194539315,1.11885119,115570.0,115560.0,0.0163111]
[1752194539316,1.28325409,115570.0,115560.0,0.0163111]
[1752194542327,1.27460148,115570.0,115560.0,0.0163111]
[1752194543926,1.28325401,115570.0,115560.0,0.0163111]
[1752194544283,1.55299751,115570.0,115560.0,0.0163111]
[1752194544467,1.56753836,115570.0,115560.0,0.0163111]
[1752194544705,1.65296829,115570.0,115560.0,0.0163111]
[1752194544897,1.56753836,115570.0,115560.0,0.0163111]
[1752194545644,1.96753836,115570.0,115560.0,0.0163111]
[1752194545851,1.56753836,115570.0,115560.0,0.0163111]
[1752194548488,1.28305401,115570.0,115560.0,0.0163111]
[1752194548692,1.08585066,115570.0,115560.0,0.0163111]
[1752194548907,1.08585022,115570.0,115560.0,0.02561855]
[1752194549643,1.26755856,115570.0,115560.0,0.0193211]
[1752194549846,1.25025386,115570.0,115560.0,0.0163111]
[1752194550315,1.25025386,115570.0,115560.0,0.0389411]
[1752194550316,1.05989343,115570.0,115560.0,0.0389411]
[1752194550516,1.08585044,115570.0,115560.0,0.0389411]
[1752194550718,1.07719798,115570.0,115560.0,0.0389411]
[1752194551395,1.07719798,115570.0,115560.0,0.0368211]
[1752194551603,1.08585051,115570.0,115560.0,0.0368211]
[1752194551767,1.09450327,115570.0,115560.0,0.0368211]
[1752194551967,1.09450327,115570.0,115560.0,0.0193211]
[1752194552911,1.09450327,115570.0,115560.0,0.0163111]
[1752194553076,1.26755856,115570.0,115560.0,0.0163111]
[1752194553255,1.2589064,115570.0,115560.0,0.0163111]
[1752194553454,1.28275401,115570.0,115560.0,0.0163111]
[1752194553739,1.55249751,115570.0,115560.0,0.0163111]
[1752194554167,1.28275401,115570.0,115560.0,0.0163111]
[1752194554388,1.55249751,115570.0,115560.0,0.0163111]
[1752194555206,1.28275401,115570.0,115560.0,0.0163111]
[1752194556564,1.28275401,115570.0,115560.0,0.01631088]
[1752194558326,1.55249751,115570.0,115560.0,0.01631088]
[1752194560981,1.43031836,115570.0,115560.0,0.01631088]
[1752194561153,1.99234829,115570.0,115560.0,0.01631088]
[1752194561486,1.90691836,115570.0,115560.0,0.01631088]
[1752194563072,1.36743136,115570.0,115560.0,0.01631088]
[1752194563250,1.90691836,115570.0,115560.0,0.01631088]
[1752194569851,1.93288536,115570.0,115560.0,0.01631088]
[1752194570571,1.96014196,115570.0,115560.0,0.01631088]
[1752194570771,2.01014196,115570.0,115560.0,0.01631088]
[1752194571189,2.01014196,115570.0,115560.0,0.00014945]
[1752194571389,0.19040971,115540.0,115530.0,0.08209005]
[1752194571562,0.19040971,115540.0,115530.0,0.00301]
[1752194571563,0.68210314,115540.0,115530.0,0.00301]
[1752194571977,0.68210314,115540.0,115530.0,0.02129]
[1752194572142,0.69091008,115540.0,115530.0,0.02129]
[1752194572544,0.69091008,115540.0,115530.0,0.06887005]
[1752194572744,0.68210314,115540.0,115530.0,0.08577005]
[1752194572963,0.68210314,115540.0,115530.0,0.03919]
[1752194573626,1.24810314,115540.0,115530.0,0.03919]
[1752194573761,1.33353307,115540.0,115530.0,0.002]
[1752194573963,1.51784664,115540.0,115530.0,0.002]
[1752194574179,1.55184664,115540.0,115530.0,0.002]
[1752194574886,0.18177081,115530.0,115520.0,0.06595005]
[1752194575230,0.94320774,115530.0,115520.0,0.06803005]
[1752194575514,1.34320774,115530.0,115520.0,0.06803005]
[1752194576142,1.34320774,115530.0,115520.0,0.0685286]
[1752194576323,1.42863767,115530.0,115520.0,0.00049855]
[1752194576908,1.36965699,115530.0,115520.0,0.02274855]
[1752194577106,1.36965699,115530.0,115520.0,0.0864286]
[1752194577474,1.93565699,115530.0,115520.0,0.05702062]
[1752194577600,1.93565699,115530.0,115520.0,0.04084855]
[1752194577977,1.93565699,115530.0,115520.0,0.04284855]
[1752194578139,1.93565699,115530.0,115520.0,0.04084855]
[1752194578325,1.93665699,115530.0,115520.0,0.03984855]
[1752194578521,1.92900138,115530.0,115520.0,0.03984855]
[1752194578868,1.51359954,115530.0,115520.0,0.03984855]
[1752194579165,1.26739083,115530.0,115520.0,0.03984855]
[1752194579735,1.25007954,115530.0,115520.0,0.03984855]
[1752194579934,1.2587353,115530.0,115520.0,0.0864286]
[1752194581767,1.5284788,115530.0,115520.0,0.0864286]
[1752194581990,0.98033604,115530.0,115520.0,0.0864286]
[1752194582292,1.25007954,115530.0,115520.0,0.0864286]
[1752194582491,1.25873522,115530.0,115520.0,0.0864286]
[1752194582688,1.11359954,115530.0,115520.0,0.0864286]
[1752194582892,0.92317343,115530.0,115520.0,0.10128213]
[1752194583258,1.05961343,115530.0,115520.0,0.10128213]
[1752194583576,0.65342993,115530.0,115520.0,0.10128213]
[1752194583787,0.79852509,115530.0,115520.0,0.05470208]
[1752194583992,0.78986993,115530.0,115520.0,0.10129923]
[1752194584229,0.78986993,115530.0,115520.0,0.05470208]
[1752194584477,0.78986993,115530.0,115520.0,0.07087737]
[1752194584478,0.92317343,115530.0,115520.0,0.07087737]
[1752194584676,0.70344,115530.0,115520.0,0.07087737]
[1752194584879,0.567,115530.0,115520.0,0.34062087]
[1752194585063,0.70344,115530.0,115520.0,0.40272761]
[1752194585239,0.70344,115530.0,115520.0,0.13298411]
[1752194585449,0.001,115530.0,115520.0,0.13514823]
[1752194585636,0.8357435,115550.0,115530.0,0.0337]
[1752194585840,0.65142993,115550.0,115540.0,0.08555514]
[1752194586203,1.06626701,115550.0,115540.0,0.10173043]
[1752194586537,1.07492074,115550.0,115540.0,0.10173043]
[1752194586738,1.06626701,115550.0,115540.0,0.10173043]
[1752194586941,1.05761343,115550.0,115540.0,0.10173043]
[1752194587455,0.65142993,115550.0,115540.0,0.11884391]
[1752194587624,0.22182993,115550.0,115540.0,0.11884391]
[1752194588046,0.49157343,115550.0,115540.0,0.11884391]
[1752194588428,1.05757343,115550.0,115540.0,0.11884391]
[1752194588899,1.05857343,115550.0,115540.0,0.11884391]
[1752194589054,1.05957343,115550.0,115540.0,0.11884391]
[1752194589253,0.78982993,115550.0,115540.0,0.11884391]
[1752194589476,0.22382993,115550.0,115540.0,0.11884391]
[1752194590076,0.49357343,115550.0,115540.0,0.11884391]
[1752194590298,1.05957343,115550.0,115540.0,0.11884391]
[1752194590903,1.05957343,115550.0,115540.0,0.11884994]
[1752194591276,0.78982993,115550.0,115540.0,0.11884994]
[1752194591500,0.22382993,115550.0,115540.0,0.11884994]
[1752194591705,0.1384,115550.0,115540.0,0.11884994]
[1752194591943,0.002,115550.0,115540.0,0.11884994]
[1752194592146,0.13836,115550.0,115540.0,0.11884994]
[1752194593516,0.13836,115550.0,115540.0,0.12730206]
[1752194594348,0.70436,115550.0,115540.0,0.12730206]
[1752194595565,0.13836,115550.0,115540.0,0.12730206]
[1752194596343,0.002,115550.0,115540.0,0.12730206]
[1752194596544,0.002,115550.0,115540.0,0.39704556]
[1752194596743,0.13832,115550.0,115540.0,0.35044042]
[1752194597201,0.002,115550.0,115540.0,0.35044042]
[1752194597326,0.13828,115550.0,115540.0,0.08069692]
[1752194597522,0.13728,115550.0,115540.0,0.08286067]
[1752194597731,0.001,115550.0,115540.0,0.08386067]
[1752194597993,0.001,115550.0,115540.0,0.07540855]
[1752194597994,0.13728,115550.0,115540.0,0.07540855]
[1752194598306,0.13728,115550.0,115540.0,0.0732448]
[1752194598625,0.13728,115550.0,115540.0,0.13538499]
[1752194598744,0.13628,115550.0,115540.0,0.13538499]
[1752194599241,0.13628,115550.0,115540.0,0.13738499]
[1752194599497,0.13628,115550.0,115540.0,0.13737376]
[1752194601080,0.4060235,115550.0,115540.0,0.08398683]
[1752194601293,0.13628,115550.0,115540.0,0.08398683]
[1752194601929,0.13628,115550.0,115540.0,0.13054946]
[1752194602130,0.13624,115550.0,115540.0,0.05028683]
[1752194602338,0.13624,115550.0,115540.0,0.05028362]
[1752194602766,0.13624,115550.0,115540.0,0.07433036]
[1752194605241,0.566,115560.0,115550.0,0.0336]
[1752194605443,0.8357435,115580.0,115560.0,0.0336]
[1752194605601,0.92117343,115580.0,115570.0,0.02216]
[1752194605801,1.06602484,115580.0,115570.0,0.05502688]
[1752194606053,1.07467633,115580.0,115570.0,0.05502688]
[1752194606257,1.06602484,115580.0,115570.0,0.05502688]
[1752194606419,0.92117343,115580.0,115570.0,0.05502688]
[1752194606621,0.49437343,115580.0,115570.0,0.05502688]
[1752194607433,1.07767618,115580.0,115570.0,0.05502688]
[1752194607832,1.08632767,115580.0,115570.0,0.05502688]
[1752194608267,0.95212767,115580.0,115570.0,0.05502688]
[1752194608435,1.09697923,115580.0,115570.0,0.05502688]
[1752194608873,1.07967618,115580.0,115570.0,0.05502688]
[1752194609102,1.07102477,115580.0,115570.0,0.05502688]
[1752194609287,1.06237343,115580.0,115570.0,0.05502688]
[1752194609488,0.49637343,115580.0,115570.0,0.05502688]
[1752194610166,0.68671687,115580.0,115570.0,0.05502688]
[1752194610368,0.68671687,115580.0,115570.0,0.01616688]
[1752194610369,1.26136918,115580.0,115570.0,0.01616688]
[1752194611393,1.5599501,115580.0,115570.0,0.01616688]
[1752194611758,1.9599501,115580.0,115570.0,0.01616688]
[1752194612343,1.8999501,115580.0,115570.0,0.01616688]
[1752194612465,1.91979243,115580.0,115570.0,0.01616688]
[1752194614589,1.8999501,115580.0,115570.0,0.01616688]
[1752194614794,1.97762629,115580.0,115570.0,0.01616688]
[1752194615001,1.99746862,115580.0,115570.0,0.01616688]
[1752194615428,1.91979243,115580.0,115570.0,0.01616688]
[1752194615797,1.8999501,115580.0,115570.0,0.01616688]
[1752194617585,1.9259161,115580.0,115570.0,0.01616688]
[1752194619422,0.19904666,115550.0,115540.0,0.04957588]
[1752194619625,0.19904666,115550.0,115540.0,0.0820671]
[1752194619626,0.51725485,115550.0,115540.0,0.0820671]
[1752194619869,0.69899435,115550.0,115540.0,0.0991671]
[1752194620068,0.68168696,115550.0,115540.0,0.0632571]
[1752194620635,0.68168696,115550.0,115540.0,0.0642571]
[1752194620841,0.71558696,115550.0,115540.0,0.0662571]
[1752194621063,0.71558696,115550.0,115540.0,0.0652571]
[1752194621266,0.71658696,115550.0,115540.0,0.0652571]
[1752194621474,1.28258696,115550.0,115540.0,0.01869122]
[1752194622232,1.28258696,115550.0,115540.0,0.01669122]
[1752194623704,1.29147297,115550.0,115540.0,0.01669122]
[1752194623904,1.69147297,115550.0,115540.0,0.01669122]
[1752194624709,1.67467297,115550.0,115540.0,0.01669122]
[1752194626268,1.69027297,115550.0,115540.0,0.01669122]
[1752194626713,1.79024375,115550.0,115540.0,0.01669122]
[1752194626930,1.65998725,115550.0,115540.0,0.01669122]
[1752194627135,1.11725404,115530.0,115520.0,0.04656588]
[1752194627341,1.64134537,115530.0,115520.0,0.0001495]
[1752194627548,1.67414537,115530.0,115520.0,0.0001495]
[1752194627748,1.40440187,115530.0,115520.0,0.0001495]
[1752194628289,1.97040187,115530.0,115520.0,0.0001495]
[1752194629346,1.97340187,115530.0,115520.0,0.0001495]
[1752194629753,1.91810715,115530.0,115520.0,0.0001495]
[1752194632467,0.17314518,115510.0,115490.0,0.08279534]
[1752194632726,0.94277495,115500.0,115490.0,0.05575469]
[1752194632898,0.95143273,115500.0,115490.0,0.05575469]
[1752194633057,0.95143273,115500.0,115490.0,0.07354469]
[1752194633270,0.68168923,115500.0,115490.0,0.07354469]
[1752194633802,0.68168923,115500.0,115490.0,0.09054469]
[1752194634248,1.24768923,115500.0,115490.0,0.09054469]
[1752194634461,1.23903145,115500.0,115490.0,0.09154469]
[1752194634680,1.50877495,115500.0,115490.0,0.09154469]
[1752194634906,1.50877495,115500.0,115490.0,0.09254469]
[1752194635306,1.50877495,115500.0,115490.0,0.05875469]
[1752194635510,1.50877495,115500.0,115490.0,0.01218881]
[1752194635917,1.50877495,115500.0,115490.0,0.04747881]
[1752194636140,0.96928795,115500.0,115490.0,0.04747881]
[1752194636356,1.5001171,115500.0,115490.0,0.04747881]
[1752194637207,1.5001171,115500.0,115490.0,0.03047881]
[1752194637869,1.58554703,115500.0,115490.0,0.03047881]
[1752194639077,1.58554703,115500.0,115490.0,0.04659985]
[1752194639720,1.61764703,115500.0,115490.0,0.02524985]
[1752194640157,1.60114703,115500.0,115490.0,0.02524985]
[1752194640363,1.5001171,115500.0,115490.0,0.02524985]
[1752194641306,0.66008726,115500.0,115490.0,0.06329985]
[1752194641545,0.81340244,115500.0,115490.0,0.06329985]
[1752194641759,1.08314587,115500.0,115490.0,0.06329985]
[1752194642188,0.95580365,115500.0,115490.0,0.06329985]
[1752194642362,1.26496494,115500.0,115490.0,0.06329985]
[1752194642595,1.25630731,115500.0,115490.0,0.06329985]
[1752194644512,1.07448876,115500.0,115490.0,0.06329985]
[1752194644902,1.08314669,115500.0,115490.0,0.06329985]
[1752194645538,1.08314601,115500.0,115490.0,0.06329985]
[1752194645774,1.26496403,115500.0,115490.0,0.06329985]
[1752194645939,1.26496463,115500.0,115490.0,0.06329985]
[1752194646423,1.25630708,115500.0,115490.0,0.06329985]
[1752194646636,1.51739288,115500.0,115490.0,0.06329985]
[1752194646803,1.24764938,115500.0,115490.0,0.06329985]
[1752194647155,1.51739288,115500.0,115490.0,0.06329985]
[1752194647869,1.24764938,115500.0,115490.0,0.06329985]
[1752194649392,1.25630738,115500.0,115490.0,0.06329985]
[1752194649891,1.07448846,115500.0,115490.0,0.06329985]
[1752194650094,1.08314624,115500.0,115490.0,0.06329985]
[1752194650504,1.09180409,115500.0,115490.0,0.06329985]
[1752194650665,1.08314624,115500.0,115490.0,0.06329985]
[1752194650869,1.07448846,115500.0,115490.0,0.06329985]
[1752194651281,1.08314616,115500.0,115490.0,0.06329985]
[1752194651690,1.09180394,115500.0,115490.0,0.06329985]
[1752194652222,1.10046187,115500.0,115490.0,0.06329985]
[1752194652419,1.25630701,115500.0,115490.0,0.06329985]
[1752194653210,1.23899153,115500.0,115490.0,0.06329985]
[1752194654579,1.50873503,115500.0,115490.0,0.04699985]
[1752194655464,1.24764923,115500.0,115490.0,0.06309985]
[1752194655834,1.51739273,115500.0,115490.0,0.06309985]
[1752194658033,1.51739273,115500.0,115490.0,0.33919334]
[1752194658034,0.65142993,115500.0,115490.0,0.33919334]
[1752194658202,0.67432474,115500.0,115490.0,0.33919334]
[1752194658411,0.67432474,115500.0,115490.0,0.06944984]
[1752194659018,0.53840474,115500.0,115490.0,0.06944984]
[1752194659193,0.67428474,115500.0,115490.0,0.06944984]
[1752194659403,0.13588,115500.0,115490.0,0.06944984]
[1752194660267,0.13588,115500.0,115490.0,0.14726018]
[1752194661036,0.566,115510.0,115490.0,0.11456018]
[1752194661277,0.66008651,115510.0,115500.0,0.09787136]
[1752194661478,0.50836674,115510.0,115500.0,0.13703955]
[1752194661661,0.49971001,115510.0,115500.0,0.13703955]
[1752194661875,0.52568109,115510.0,115500.0,0.1161024]
[1752194662114,0.69882627,115510.0,115500.0,0.1161024]
[1752194662314,1.08302384,115510.0,115500.0,0.1161024]
[1752194662513,1.08302376,115510.0,115500.0,0.1161024]
[1752194663126,1.09168079,115510.0,115500.0,0.1161024]
[1752194663277,1.66633804,115510.0,115500.0,0.1161024]
[1752194663477,1.10033804,115510.0,115500.0,0.1161024]
[1752194663712,1.24751289,115510.0,115500.0,0.03816104]
[1752194663911,1.23885586,115510.0,115500.0,0.03816104]
[1752194664493,1.23885586,115510.0,115500.0,0.05526104]
[1752194667175,1.23885586,115510.0,115500.0,0.1175024]
[1752194667585,1.23885586,115510.0,115500.0,0.10138136]
[1752194667895,0.19047543,115500.0,115490.0,0.10440017]
[1752194668122,0.68144871,115500.0,115490.0,0.10651017]
[1752194668278,1.25610664,115500.0,115490.0,0.10651017]
[1752194668489,1.25610626,115500.0,115490.0,0.12270893]
[1752194668694,1.26476366,115500.0,115490.0,0.12270893]
[1752194668893,1.26476358,115500.0,115490.0,0.12270893]
[1752194669094,1.26476358,115500.0,115490.0,0.12470893]
[1752194669502,1.27342143,115500.0,115490.0,0.06246757]
[1752194669727,1.27342143,115500.0,115490.0,0.06346757]
[1752194669930,1.07428816,115500.0,115490.0,0.07763536]
[1752194670134,1.08294564,115500.0,115490.0,0.07763536]
[1752194670619,1.08294564,115500.0,115490.0,0.13986512]
[1752194670824,1.09160327,115500.0,115490.0,0.13986512]
[1752194671028,1.27342189,115500.0,115490.0,0.12569733]
[1752194671266,1.27342182,115500.0,115490.0,0.12569733]
[1752194671471,1.27342182,115500.0,115490.0,0.06346909]
[1752194671892,1.26476389,115500.0,115490.0,0.06346909]
[1752194672188,1.27342234,115500.0,115490.0,0.06346909]
[1752194672420,1.26476434,115500.0,115490.0,0.12570483]
[1752194672637,1.24744923,115500.0,115490.0,0.12570483]
[1752194673270,1.24744923,115500.0,115490.0,0.10980483]
[1752194673497,1.24744923,115500.0,115490.0,0.10769658]
[1752194673738,1.50853495,115500.0,115490.0,0.08756658]
[1752194674451,1.63950573,115500.0,115490.0,0.08756658]
[1752194674677,1.5540758,115500.0,115490.0,0.08756658]
[1752194675133,1.5540758,115500.0,115490.0,0.02533084]
[1752194675576,1.5540758,115500.0,115490.0,0.02333084]
[1752194676040,1.9540758,115500.0,115490.0,0.02333084]
[1752194676502,1.9540758,115500.0,115490.0,0.02233084]
[1752194677595,1.9440758,115500.0,115490.0,0.02233084]
[1752194677755,2.2138193,115500.0,115490.0,0.02233084]
[1752194678163,2.23366163,115500.0,115490.0,0.02233084]
[1752194678794,1.96491813,115500.0,115490.0,0.02233084]
[1752194679163,2.23366163,115500.0,115490.0,0.0136742]
[1752194679354,2.32209156,115500.0,115490.0,0.0136742]
[1752194679656,2.34320617,115500.0,115490.0,0.00501756]
[1752194679934,2.34420617,115500.0,115490.0,0.00501756]
[1752194680206,0.82557726,115490.0,115480.0,0.0004]
[1752194680413,1.26791712,115490.0,115480.0,0.0005496]
[1752194681694,1.86490512,115490.0,115480.0,0.0005496]
[1752194681893,2.13464862,115490.0,115480.0,0.0005496]
[1752194682416,1.77947519,115490.0,115480.0,0.0005496]
[1752194683018,2.04921869,115490.0,115480.0,0.0005496]
[1752194684839,0.20506599,115470.0,115460.0,0.0004]
[1752194685045,1.50142292,115470.0,115460.0,0.00048607]
[1752194685349,1.58685285,115470.0,115460.0,0.00048607]
[1752194685571,1.61945285,115470.0,115460.0,0.00048607]
[1752194686374,2.18545285,115470.0,115460.0,0.00048607]
[1752194686598,2.21178826,115470.0,115460.0,0.00048607]
[1752194686806,2.21048826,115470.0,115460.0,0.00048607]
[1752194687026,2.15048826,115470.0,115460.0,0.00048607]
[1752194688637,2.15931432,115470.0,115460.0,0.00048607]
[1752194689880,2.12801432,115470.0,115460.0,0.00048607]
[1752194691092,2.12801432,115470.0,115460.0,0.00572607]
[1752194691226,2.12801432,115470.0,115460.0,0.02232607]
[1752194691488,2.12801432,115470.0,115460.0,0.02017607]
[1752194691650,2.12801432,115470.0,115460.0,0.00048607]
[1752194692070,2.12801432,115470.0,115460.0,0.01663519]
[1752194694332,2.14431432,115470.0,115460.0,0.01663519]
[1752194695851,2.18630432,115470.0,115460.0,0.01663519]
[1752194696695,2.45604782,115470.0,115460.0,0.01663519]
[1752194696856,0.55388101,115460.0,115450.0,0.0059998]
[1752194697074,1.49749131,115460.0,115450.0,0.00608617]
[1752194697889,1.50049131,115460.0,115450.0,0.00608617]
[1752194698398,2.06649131,115460.0,115450.0,0.00608617]
[1752194698852,1.79674781,115460.0,115450.0,0.00608617]
[1752194699247,1.76474781,115460.0,115450.0,0.00608617]
[1752194699624,1.49338781,115460.0,115450.0,0.00608617]
[1752194699826,1.64560866,115460.0,115450.0,0.02792617]
[1752194700035,1.64560866,115460.0,115450.0,0.04372617]
[1752194700555,1.64560866,115460.0,115450.0,0.02577617]
[1752194701861,1.64560866,115460.0,115450.0,0.00917617]
[1752194702255,1.94785216,115460.0,115450.0,0.00608617]
[1752194702466,1.94785216,115460.0,115440.0,0.0004]
[1752194702467,0.56893761,115450.0,115440.0,0.0004]
[1752194702648,1.62276447,115450.0,115440.0,0.00054964]
[1752194703068,1.64561422,115450.0,115440.0,0.00054964]
[1752194703424,2.21161422,115450.0,115440.0,0.00054964]
[1752194703600,0.21265337,115440.0,115430.0,0.0004]
[1752194703798,1.01226005,115440.0,115430.0,0.0008991]
[1752194704022,1.36743348,115440.0,115430.0,0.0008991]
[1752194704400,1.66368998,115440.0,115430.0,0.0008991]
[1752194704833,2.27343348,115440.0,115430.0,0.0008991]
[1752194705048,2.29647106,115440.0,115430.0,0.0008991]
[1752194705281,2.00368998,115440.0,115430.0,0.0008991]
[1752194705925,0.19646913,115430.0,115420.0,0.0209998]
[1752194706129,1.07525599,115430.0,115420.0,0.02114956]
[1752194706335,1.09810574,115430.0,115420.0,0.02114956]
[1752194706461,1.66410574,115430.0,115420.0,0.02114956]
[1752194707096,1.64720574,115430.0,115420.0,0.02114956]
[1752194707326,1.33871249,115430.0,115420.0,0.02214956]
[1752194707492,1.35986149,115430.0,115420.0,0.02214956]
[1752194708726,0.86904806,115430.0,115420.0,0.02838956]
[1752194708877,1.59606799,115430.0,115420.0,0.06198956]
[1752194709306,1.58740496,115430.0,115420.0,0.06198956]
[1752194709509,1.23874149,115430.0,115420.0,0.06198956]
[1752194709757,0.66009258,115430.0,115420.0,0.06198956]
[1752194709946,1.42280176,115430.0,115420.0,0.06198956]
[1752194710147,0.88982524,115430.0,115420.0,0.06198956]
[1752194710325,1.17689457,115430.0,115420.0,0.06198956]
[1752194710529,1.09146464,115430.0,115420.0,0.06198956]
[1752194710709,1.10012782,115430.0,115420.0,0.06198956]
[1752194710920,0.79573266,115430.0,115420.0,0.06198956]
[1752194711124,0.65142993,115430.0,115420.0,0.06198956]
[1752194711331,0.79573258,115430.0,115420.0,0.06198956]
[1752194711539,0.78706993,115430.0,115420.0,0.06198956]
[1752194712439,0.08542993,115430.0,115420.0,0.06198956]
[1752194712868,0.22106993,115430.0,115420.0,0.1242253]
[1752194713330,0.78706993,115430.0,115420.0,0.1242253]
[1752194714420,0.70164,115430.0,115420.0,0.1242253]
[1752194714569,0.1356,115430.0,115420.0,0.1234253]
[1752194715371,0.79116231,115450.0,115420.0,0.1234253]
[1752194715572,0.85926993,115450.0,115430.0,0.00309]
[1752194715756,0.85926993,115450.0,115440.0,0.03535]
[1752194715951,0.99486993,115450.0,115440.0,0.03844]
[1752194716942,0.90944,115450.0,115440.0,0.03844]
[1752194717335,0.20784,115450.0,115440.0,0.03844]
[1752194717501,0.34344,115450.0,115440.0,0.03844]
[1752194717705,0.566,115460.0,115440.0,0.01530757]
[1752194717904,0.566,115460.0,115450.0,0.00309]
[1752194718104,0.7016,115460.0,115450.0,0.02142329]
[1752194718379,0.7016,115460.0,115450.0,0.05392329]
[1752194718553,0.1356,115460.0,115450.0,0.05392329]
[1752194718805,0.1356,115460.0,115450.0,0.09934734]
[1752194719236,0.566,115470.0,115460.0,0.0328]
[1752194719436,0.1356,115470.0,115460.0,0.05109097]
[1752194719635,0.1356,115470.0,115460.0,0.05418097]
[1752194720139,0.566,115480.0,115470.0,0.0328]
[1752194720337,0.78698993,115480.0,115470.0,0.05650907]
[1752194720570,0.78748872,115480.0,115470.0,0.05959907]
[1752194721204,0.79614755,115480.0,115470.0,0.05959907]
[1752194721408,0.78748872,115480.0,115470.0,0.06159907]
[1752194721787,0.78748872,115480.0,115470.0,0.06259907]
[1752194723279,0.56649879,115480.0,115470.0,0.06259907]
[1752194723479,0.70205879,115480.0,115470.0,0.06259907]
[1752194724287,0.70205879,115480.0,115470.0,0.06166088]
[1752194724507,0.70205879,115480.0,115470.0,0.05624278]
[1752194724508,0.695672,115480.0,115470.0,0.05624278]
[1752194724709,0.49650416,115480.0,115470.0,0.05624278]
[1752194724926,0.48784533,115480.0,115470.0,0.05624278]
[1752194725161,0.13605879,115480.0,115470.0,0.05624278]
[1752194725302,0.70205879,115480.0,115470.0,0.05624278]
[1752194725672,0.70205879,115480.0,115470.0,0.06186706]
[1752194726024,0.89256683,115480.0,115470.0,0.06186706]
[1752194726243,1.07116314,115480.0,115470.0,0.06186706]
[1752194726455,1.25301235,115480.0,115470.0,0.06186706]
[1752194726763,0.81346588,115480.0,115470.0,0.06186706]
[1752194726984,0.7961477,115480.0,115470.0,0.06186706]
[1752194727801,0.78748872,115480.0,115470.0,0.06186706]
[1752194728564,0.70205879,115480.0,115470.0,0.06186706]
[1752194729180,0.71071777,115480.0,115470.0,0.06186706]
[1752194729642,0.70205879,115480.0,115470.0,0.06186706]
[1752194730478,0.70205879,115480.0,115470.0,0.04568609]
[1752194730677,0.70205879,115480.0,115470.0,0.06183105]
[1752194731494,0.13605879,115480.0,115470.0,0.06183105]
[1752194732308,0.70205879,115480.0,115470.0,0.06183105]
[1752194732519,0.70205879,115480.0,115470.0,0.05620677]
[1752194733109,1.17111688,115480.0,115470.0,0.05620677]
[1752194733483,1.26520616,115480.0,115470.0,0.05620677]
[1752194733741,1.07469737,115480.0,115470.0,0.05620677]
[1752194734000,1.07469729,115480.0,115470.0,0.05620677]
[1752194734155,1.06603824,115480.0,115470.0,0.05620677]
[1752194734422,1.07469729,115480.0,115470.0,0.05620677]
[1752194735139,1.06603824,115480.0,115470.0,0.05620677]
[1752194735349,1.07469722,115480.0,115470.0,0.05620677]
[1752194735814,1.08335642,115480.0,115470.0,0.05620677]
[1752194736021,1.07469722,115480.0,115470.0,0.05620677]
[1752194736243,1.07469715,115480.0,115470.0,0.05620677]
[1752194736672,1.07469707,115480.0,115470.0,0.05620677]
[1752194737114,0.78748872,115480.0,115470.0,0.06182745]
[1752194737745,1.06603817,115480.0,115470.0,0.06182745]
[1752194738407,1.05737934,115480.0,115470.0,0.06182745]
[1752194738606,0.8048066,115480.0,115470.0,0.06182745]
[1752194738721,1.07469722,115480.0,115470.0,0.06182745]
[1752194738926,1.07469715,115480.0,115470.0,0.06182745]
[1752194739170,1.24788731,115480.0,115470.0,0.06182745]
[1752194739539,1.26520594,115480.0,115470.0,0.03729677]
[1752194739713,1.25654711,115480.0,115470.0,0.03729677]
[1752194740267,1.24788813,115480.0,115470.0,0.01914496]
[1752194741221,1.24788813,115480.0,115470.0,0.01814496]
[1752194742100,1.05737934,115480.0,115470.0,0.02332496]
[1752194742299,1.05737934,115480.0,115470.0,0.05732496]
[1752194742300,0.22148872,115480.0,115470.0,0.05732496]
[1752194742513,0.22148872,115480.0,115470.0,0.06305746]
[1752194742514,0.00049879,115480.0,115470.0,0.06305746]
[1752194742703,0.13593879,115480.0,115470.0,0.06305746]
[1752194743363,0.70193879,115480.0,115470.0,0.06305746]
[1752194743733,0.70193879,115480.0,115470.0,0.06105746]
[1752194744058,0.70193879,115480.0,115470.0,0.06205746]
[1752194744485,0.70193879,115480.0,115470.0,0.06305746]
[1752194745184,0.70193879,115480.0,115470.0,0.06311423]
[1752194745358,0.13593879,115480.0,115470.0,0.06311423]
[1752194745720,0.00049879,115480.0,115470.0,0.06311423]
[1752194745922,0.13593879,115480.0,115470.0,0.33516991]
[1752194746198,0.13593879,115480.0,115470.0,0.06311423]
[1752194746405,0.12554996,115480.0,115470.0,0.06527929]
[1752194747253,0.12554996,115480.0,115470.0,0.06311423]
[1752194748151,0.11148337,115480.0,115470.0,0.06311423]
[1752194749632,0.09795337,115480.0,115470.0,0.12515289]
[1752194749855,0.566,115490.0,115480.0,0.0329]
[1752194750074,0.70152949,115490.0,115480.0,0.12573219]
[1752194750278,0.56612949,115490.0,115480.0,0.12880219]
[1752194750530,0.13552949,115490.0,115480.0,0.06674963]
[1752194750710,0.13552949,115490.0,115480.0,0.12878829]
[1752194751234,0.00012949,115490.0,115480.0,0.12878829]
[1752194751482,0.00012949,115490.0,115480.0,0.80605747]
[1752194751707,0.00012949,115490.0,115480.0,0.73535953]
[1752194751913,0.00012949,115490.0,115480.0,0.20414963]
[1752194752092,0.00012949,115490.0,115480.0,0.26632411]
[1752194752992,0.00012949,115490.0,115480.0,0.37733979]
[1752194753203,0.00012949,115490.0,115480.0,0.26828075]
[1752194753410,0.00012949,115490.0,115480.0,0.13288075]
[1752194753588,0.00012949,115490.0,115480.0,0.26824075]
[1752194753821,0.00012949,115490.0,115480.0,0.26424075]
[1752194754056,0.00012949,115490.0,115480.0,1.18940226]
[1752194754260,0.51050838,115520.0,115510.0,0.24645689]
[1752194754482,0.0055998,115550.0,115540.0,0.0328]
[1752194754710,0.0055998,115550.0,115540.0,0.05095783]
[1752194754936,0.00572943,115550.0,115540.0,0.05417783]
[1752194755149,0.00572943,115550.0,115540.0,0.05634158]
[1752194755368,0.00572943,115550.0,115540.0,0.62211389]
[1752194755584,0.00572943,115550.0,115540.0,0.43170403]
[1752194756009,0.00572943,115550.0,115540.0,0.44035904]
[1752194756216,0.00572943,115550.0,115540.0,0.09765373]
[1752194756428,0.00572943,115550.0,115540.0,0.08034379]
[1752194756863,0.00572943,115550.0,115540.0,0.0889988]
[1752194757080,0.00572943,115550.0,115540.0,0.26209902]
[1752194757311,0.00572943,115550.0,115540.0,0.27940866]
[1752194757527,0.00572943,115550.0,115540.0,0.6307689]
[1752194757748,0.00572943,115550.0,115540.0,0.62211419]
[1752194757972,0.00572943,115550.0,115540.0,0.43270403]
[1752194758186,0.00572943,115550.0,115540.0,0.21670379]
[1752194759073,0.5717998,115580.0,115560.0,0.38476024]